fUSD/lending_fUSD_20241104
["ID","MTS","AMOUNT","RATE_DAILY","PERIOD"]
[341263497,1730735454930,-151.0,0.0003589,7]
[341263498,1730735454940,-1770.42,0.0003589,2]
[341263499,1730735454949,-565.79637654,0.0003589,2]
[341263500,1730735454959,-500.0,0.0003589,2]
[341263501,1730735454969,-510.09,0.0003589,2]
[341263502,1730735454978,-522.29,0.0003589,2]
[341263503,1730735454988,-958.22,0.0003589,2]
[341263504,1730735454997,-500.0,0.0003589,2]
[341263505,1730735455007,-500.0,0.0003589,2]
[341263506,1730735455017,-1127.16,0.0003589,2]
[341263507,1730735455027,-500.0,0.0003589,2]
[341263508,1730735455036,-500.0,0.0003589,2]
[341263509,1730735455046,-865.69,0.0003589,2]
[341263510,1730735455055,-500.0,0.0003589,2]
[341263511,1730735455065,-500.0,0.0003589,2]
[341263512,1730735455074,-500.0,0.0003589,2]
[341263513,1730735455084,-1128.13,0.0003589,2]
[341263514,1730735455094,-505.75066043,0.0003589,2]
[341263515,1730735455103,-500.0,0.0003589,2]
[341263516,1730735455113,-500.0,0.0003589,2]
[341263517,1730735455123,-1045.13,0.0003589,2]
[341263518,1730735455132,-500.0,0.0003589,2]
[341263519,1730735455141,-500.0,0.0003589,2]
[341263520,1730735455151,-531.53,0.0003589,2]
[341263521,1730735455160,-500.0,0.0003589,2]
[341263522,1730735455169,-500.0,0.0003589,2]
[341263523,1730735455178,-500.0,0.0003589,2]
[341263524,1730735455187,-500.0,0.0003589,2]
[341263525,1730735455196,-500.0,0.0003589,2]
[341263526,1730735455207,-2026.72,0.0003589,2]
[341263527,1730735455216,-500.0,0.0003589,2]
[341263528,1730735455225,-1098.81,0.0003589,2]
[341263529,1730735455234,-250.0,0.0003589,2]
[341263530,1730735455244,-587.48815374,0.0003589,2]
[341263531,1730735455252,-500.0,0.0003589,2]
[341263532,1730735455262,-520.4,0.0003589,2]
[341263533,1730735455271,-500.0,0.0003589,2]
[341263534,1730735455281,-519.04,0.0003589,2]
[341263535,1730735455290,-500.0,0.0003589,2]
[341263536,1730735455299,-500.0,0.0003589,2]
[341263537,1730735455309,-500.0,0.0003589,2]
[341263538,1730735455318,-500.0,0.0003589,2]
[341263539,1730735455327,-500.0,0.0003589,2]
[341263540,1730735455336,-627.52,0.0003589,2]
[341263541,1730735455345,-500.0,0.0003589,2]
[341263542,1730735455354,-500.0,0.0003589,2]
[341263543,1730735455364,-587.36,0.0003589,2]
[341263544,1730735455373,-500.0,0.0003589,2]
[341263545,1730735455384,-500.0,0.0003589,2]
[341263546,1730735455394,-500.0,0.0003589,2]
[341263547,1730735455403,-500.0,0.0003589,2]
[341263548,1730735455412,-500.0,0.0003589,2]
[341263549,1730735455422,-500.0,0.0003589,2]
[341263550,1730735455432,-500.0,0.0003589,2]
[341263551,1730735455442,-2121.93,0.0003589,2]
[341263552,1730735455451,-500.0,0.0003589,2]
[341263553,1730735455463,-500.0,0.0003589,2]
[341263554,1730735455473,-582.71,0.0003589,2]
[341263555,1730735455482,-1427.63,0.0003589,2]
[341263556,1730735455492,-500.0,0.0003589,2]
[341263557,1730735455501,-500.0,0.0003589,2]
[341263558,1730735455511,-791.14,0.0003589,2]
[341263559,1730735455520,-513.2297925,0.0003589,2]
[341263560,1730735455531,-500.0,0.0003589,2]
[341263561,1730735455540,-500.0,0.0003589,2]
[341263562,1730735455550,-1116.56,0.0003589,2]
[341263563,1730735455560,-435.41462726,0.0003589,2]
[341263564,1730735455570,-500.0,0.0003589,2]
[341263565,1730735455580,-500.0,0.0003589,2]
[341263566,1730735455589,-2018.13,0.0003589,2]
[341263567,1730735455598,-1093.28,0.0003589,2]
[341263568,1730735455608,-500.0,0.0003589,2]
[341263569,1730735455618,-500.0,0.0003589,2]
[341263570,1730735455628,-540.83509715,0.0003589,2]
[341263571,1730735455638,-500.0,0.0003589,2]
[341263572,1730735455647,-500.0,0.0003589,2]
[341263573,1730735455657,-1104.45,0.0003589,2]
[341263574,1730735455667,-1687.58,0.0003589,2]
[341263575,1730735455676,-500.0,0.0003589,2]
[341263576,1730735455685,-500.0,0.0003589,2]
[341263577,1730735455693,-911.86,0.0003589,2]
[341263578,1730735455703,-500.0,0.0003589,2]
[341263579,1730735455712,-835.19,0.0003589,2]
[341263580,1730735455721,-878.68,0.0003589,2]
[341263581,1730735455730,-500.0,0.0003589,2]
[341263582,1730735455739,-1098.84,0.0003589,2]
[341263583,1730735455749,-544.98619175,0.0003589,2]
[341263584,1730735455758,-500.0,0.0003589,2]
[341263585,1730735455767,-500.0,0.0003589,2]
[341263586,1730735455777,-1310.74,0.0003589,2]
[341263587,1730735455786,-506.66305624,0.0003589,2]
[341263588,1730735455800,-500.0,0.0003589,2]
[341263589,1730735455821,-2183.79,0.0003589,2]
[341263590,1730735455842,-820.36,0.0003589,2]
[341263591,1730735455862,-500.0,0.0003589,2]
[341263592,1730735455882,-515.02,0.0003589,2]
[341263593,1730735455903,-500.0,0.0003589,2]
[341263594,1730735455922,-500.0,0.0003589,2]
[341263595,1730735455942,-500.0,0.0003589,2]
[341263596,1730735455962,-500.0,0.0003589,2]
[341263597,1730735455979,-500.0,0.0003589,2]
[341263598,1730735455988,-500.0,0.0003589,2]
[341263599,1730735455998,-500.0,0.0003589,2]
[341263600,1730735456007,-500.0,0.0003589,2]
[341263601,1730735456017,-438.09459305,0.0003589,2]
[341263602,1730735456026,-500.0,0.0003589,2]
[341263603,1730735456036,-500.0,0.0003589,2]
[341263604,1730735456045,-500.0,0.0003589,2]
[341263605,1730735456055,-500.0,0.0003589,2]
[341263606,1730735456064,-448.97953886,0.0003589,2]
[341263607,1730735456074,-500.0,0.0003589,2]
[341263608,1730735456185,-508.27974583,0.0003589,2]
[341263609,1730735456206,-500.0,0.0003589,2]
[341263610,1730735456216,-1708.91,0.0003589,2]
[341263611,1730735456225,-500.0,0.0003589,2]
[341263612,1730735456234,-509.85996268,0.0003589,2]
[341263613,1730735456244,-544.98,0.0003589,2]
[341263614,1730735456254,-500.0,0.0003589,2]
[341263615,1730735456264,-500.0,0.0003589,2]
[341263616,1730735456273,-660.53,0.0003589,2]
[341263617,1730735456282,-500.0,0.0003589,2]
[341263618,1730735456292,-850.52,0.0003589,2]
[341263619,1730735456302,-564.44,0.0003589,2]
[341263620,1730735456313,-500.0,0.0003589,2]
[341263621,1730735456324,-383.33172866,0.0003589,2]
[341263622,1730735456335,-288.43225459,0.0003589,2]
[341263623,1730735456346,-752.59,0.0003589,2]
[341263624,1730735456357,-500.0,0.0003589,2]
[341263625,1730735456368,-500.0,0.0003589,2]
[341263626,1730735456379,-500.0,0.0003589,2]
[341263627,1730735456392,-539.79625373,0.0003589,2]
[341263628,1730735456403,-500.0,0.0003589,2]
[341263629,1730735456412,-500.0,0.0003589,2]
[341263630,1730735456421,-500.0,0.0003589,2]
[341263631,1730735456432,-1296.67,0.0003589,2]
[341263632,1730735456444,-523.86910887,0.0003589,2]
[341263633,1730735456453,-500.0,0.0003589,2]
[341263634,1730735456464,-1584.46,0.0003589,2]
[341263635,1730735456474,-500.0,0.0003589,2]
[341263636,1730735456483,-510.84829015,0.0003589,2]
[341263637,1730735456492,-555.76,0.0003589,2]
[341263638,1730735456503,-1066.3,0.0003589,2]
[341263639,1730735456512,-1582.17,0.0003589,2]
[341263640,1730735456521,-500.0,0.0003589,2]
[341263641,1730735456531,-500.0,0.0003589,2]
[341263642,1730735456540,-500.0,0.0003589,2]
[341263643,1730735456549,-500.0,0.0003589,2]
[341263644,1730735456559,-500.0,0.0003589,2]
[341263645,1730735456568,-500.0,0.0003589,2]
[341263646,1730735456578,-500.0,0.0003589,2]
[341263647,1730735456588,-500.0,0.0003589,2]
[341263648,1730735456598,-463.3488376,0.0003589,2]
[341263649,1730735456608,-500.0,0.0003589,2]
[341263650,1730735456619,-500.0,0.0003589,2]
[341263651,1730735456629,-500.0,0.0003589,2]
[341263652,1730735456639,-151.0,0.0003589,7]
[341263653,1730735456649,-500.0,0.0003589,2]
[341263654,1730735456661,-1042.76,0.0003589,2]
[341263655,1730735456671,-500.0,0.0003589,2]
[341263656,1730735456682,-1058.38,0.0003589,2]
[341263657,1730735456692,-500.0,0.0003589,2]
[341263658,1730735456703,-151.0,0.0003589,7]
[341263659,1730735456717,-200.0,0.0003589,2]
[341263660,1730735456728,-505.09,0.0003589,2]
[341263661,1730735456738,-913.46,0.0003589,2]
[341263662,1730735456747,-584.35481906,0.0003589,2]
[341263663,1730735456756,-2146.82,0.0003589,2]
[341263664,1730735456766,-766.26,0.0003589,2]
[341263665,1730735456775,-502.92708342,0.0003589,2]
[341263666,1730735456784,-500.0,0.0003589,2]
[341263667,1730735456794,-1191.45,0.0003589,2]
[341263668,1730735456803,-500.0,0.0003589,2]
[341263669,1730735456812,-500.0,0.0003589,2]
[341263670,1730735456822,-500.0,0.0003589,2]
[341263671,1730735456831,-500.0,0.0003589,2]
[341263672,1730735456841,-609.71,0.0003589,2]
[341263673,1730735456851,-938.94,0.0003589,2]
[341263674,1730735456860,-222.60084314,0.0003589,2]
[341263675,1730735456869,-734.64,0.0003589,2]
[341263676,1730735456879,-500.0,0.0003589,2]
[341263677,1730735456888,-500.0,0.0003589,2]
[341263678,1730735456898,-500.0,0.0003589,2]
[341263679,1730735456908,-500.0,0.0003589,2]
[341263680,1730735456918,-500.0,0.0003589,2]
[341263681,1730735456928,-300.0,0.0003589,2]
[341263682,1730735456937,-500.0,0.0003589,2]
[341263683,1730735456946,-500.0,0.0003589,2]
[341263684,1730735456956,-500.0,0.0003589,2]
[341263685,1730735456967,-530.41,0.0003589,2]
[341263686,1730735456977,-500.0,0.0003589,2]
[341263687,1730735456986,-500.0,0.0003589,2]
[341263688,1730735457000,-500.0,0.0003589,2]
[341263689,1730735457021,-1127.04,0.0003589,2]
[341263690,1730735457038,-654.01,0.0003589,2]
[341263691,1730735457057,-154.906223,0.0003589,7]
[341263692,1730735457077,-319.97156809,0.0003589,2]
[341263693,1730735457095,-500.0,0.0003589,2]
[341263694,1730735457112,-604.98,0.0003589,2]
[341263695,1730735457128,-3340.62,0.0003589,2]
[341263696,1730735457144,-248.29635162,0.0003589,2]
[341263697,1730735457161,-500.0,0.0003589,2]
[341263698,1730735457182,-500.0,0.0003589,2]
[341263699,1730735457196,-500.0,0.0003589,2]
[341263700,1730735457213,-10593.24,0.0003589,2]
[341263701,1730735457227,-735.14,0.0003589,2]
[341263702,1730735457245,-500.0,0.0003589,2]
[341263703,1730735457260,-500.0,0.0003589,2]
[341263704,1730735457274,-500.0,0.0003589,2]
[341263705,1730735457292,-500.0,0.0003589,2]
[341263706,1730735457309,-500.0,0.0003589,2]
[341263707,1730735457326,-1246.62,0.0003589,2]
[341263708,1730735457341,-528.03,0.0003589,2]
[341263709,1730735457356,-3005.2,0.0003589,2]
[341263710,1730735457372,-500.0,0.0003589,2]
[341263711,1730735457389,-500.0,0.0003589,2]
[341263712,1730735457403,-500.0,0.0003589,2]
[341263713,1730735457419,-558.26,0.0003589,2]
[341263714,1730735457434,-614.06954595,0.0003589,2]
[341263715,1730735457450,-656.86,0.0003589,2]
[341263716,1730735457465,-151.0,0.0003589,7]
[341263717,1730735457480,-1000.0,0.0003589,2]
[341263718,1730735457495,-500.0,0.0003589,2]
[341263719,1730735457510,-625.73,0.0003589,2]
[341263720,1730735457525,-2616.04,0.0003589,2]
[341263721,1730735457540,-500.0,0.0003589,2]
[341263722,1730735457555,-629.53872339,0.0003589,2]
[341263723,1730735457570,-3461.86,0.0003589,2]
[341263724,1730735457585,-500.0,0.0003589,2]
[341263725,1730735457599,-500.0,0.0003589,2]
[341263726,1730735457614,-500.0,0.0003589,2]
[341263727,1730735457629,-1222.7,0.0003589,2]
[341263728,1730735457646,-514.78,0.0003589,2]
[341263729,1730735457661,-500.0,0.0003589,2]
[341263730,1730735457676,-500.0,0.0003589,2]
[341263731,1730735457689,-500.0,0.0003589,2]
[341263732,1730735457703,-451.31065533,0.0003589,2]
[341263733,1730735457719,-500.0,0.0003589,2]
[341263734,1730735457733,-954.74,0.0003589,2]
[341263735,1730735457747,-500.0,0.0003589,2]
[341263736,1730735457762,-692.32,0.0003589,2]
[341263737,1730735457776,-596.33,0.0003589,2]
[341263738,1730735457790,-500.0,0.0003589,2]
[341263739,1730735457804,-500.0,0.0003589,2]
[341263740,1730735457819,-255.746573,0.0003589,7]
[341263741,1730735457834,-1916.99,0.0003589,2]
[341263742,1730735457848,-500.0,0.0003589,2]
[341263743,1730735457863,-500.0,0.0003589,2]
[341263744,1730735457878,-500.0,0.0003589,2]
[341263745,1730735457893,-457.0,0.000359,2]
[341263746,1730735457907,-935.12,0.000359,14]
[341263747,1730735457916,-158.0,0.00035949,5]
[341263748,1730735457925,-2888.7595063,0.00035949,2]
[341263749,1730735457934,-848.7544937,0.00035949,2]
[341263750,1730735457944,-904.07618519,0.00036,2]
[341263751,1730735457953,-631.76499309,0.00036,2]
[341263752,1730735457964,-1000.0,0.00036,9]
[341263753,1730735457974,-152.94,0.00036,31]
[341263754,1730735457983,-879.46,0.00036162,2]
[341263755,1730735457992,-743.85,0.00036162,2]
[341263756,1730735458002,-500.0,0.00036163,2]
[341263757,1730735458011,-500.0,0.00036163,2]
[341263758,1730735458020,-500.0,0.00036163,2]
[341263759,1730735458030,-519.87,0.00036163,2]
[341263760,1730735458041,-500.0,0.00036163,2]
[341263761,1730735458050,-500.0,0.00036163,2]
[341263762,1730735458059,-530.67454699,0.00036163,2]
[341263763,1730735458069,-500.0,0.00036163,2]
[341263764,1730735458079,-500.0,0.00036163,2]
[341263765,1730735458090,-500.0,0.00036163,2]
[341263766,1730735458100,-500.0,0.00036163,2]
[341263767,1730735458109,-549.40509713,0.00036163,2]
[341263768,1730735458381,-500.0,0.00036163,2]
[341263769,1730735458403,-500.0,0.00036163,2]
[341263770,1730735458425,-255.38725908,0.00036163,2]
[341263771,1730735458442,-500.0,0.00036163,2]
[341263772,1730735458452,-500.0,0.00036163,2]
[341263773,1730735458463,-500.0,0.00036163,2]
[341263774,1730735458472,-500.0,0.00036163,2]
[341263775,1730735458482,-609.74410442,0.00036163,2]
[341263776,1730735458492,-527.75745787,0.00036163,2]
[341263777,1730735458503,-500.0,0.00036163,2]
[341263778,1730735458512,-500.0,0.00036163,2]
[341263779,1730735458522,-500.0,0.00036163,2]
[341263780,1730735458531,-500.0,0.00036163,2]
[341263781,1730735458541,-500.0,0.00036163,2]
[341263782,1730735458551,-500.0,0.00036163,2]
[341263783,1730735458560,-500.0,0.00036163,2]
[341263784,1730735458569,-500.0,0.00036163,2]
[341263785,1730735458579,-500.0,0.00036163,2]
[341263786,1730735458589,-500.0,0.00036163,2]
[341263787,1730735458598,-500.0,0.00036163,2]
[341263788,1730735458608,-500.0,0.00036163,2]
[341263789,1730735458617,-500.0,0.00036163,2]
[341263790,1730735458627,-500.0,0.00036163,2]
[341263791,1730735458637,-500.0,0.00036163,2]
[341263792,1730735458646,-500.0,0.00036163,2]
[341263793,1730735458656,-500.0,0.00036163,2]
[341263794,1730735458665,-500.0,0.00036163,2]
[341263795,1730735458675,-500.0,0.00036163,2]
[341263796,1730735458685,-500.0,0.00036163,2]
[341263797,1730735458695,-500.0,0.00036163,2]
[341263798,1730735458706,-500.0,0.00036163,2]
[341263799,1730735458716,-500.0,0.00036163,2]
[341263800,1730735458725,-500.0,0.00036163,2]
[341263801,1730735458735,-500.0,0.00036163,2]
[341263802,1730735458744,-500.0,0.00036163,2]
[341263803,1730735458755,-477.08055269,0.00036163,2]
[341263804,1730735458765,-520.94,0.00036163,2]
[341263805,1730735458774,-879.46,0.00036163,2]
[341263806,1730735458784,-500.0,0.00036163,2]
[341263807,1730735458793,-500.0,0.00036163,2]
[341263808,1730735458803,-622.60616125,0.00036163,2]
[341263809,1730735458813,-414.63157525,0.00036163,2]
[341263810,1730735458823,-150.0,0.00036163,2]
[341263811,1730735458833,-550.25911332,0.00036163,2]
[341263812,1730735458842,-500.0,0.00036163,2]
[341263813,1730735458852,-500.0,0.00036163,2]
[341263814,1730735458862,-534.93232122,0.00036163,2]
[341263815,1730735458872,-552.9263683,0.00036163,2]
[341263816,1730735458882,-500.0,0.00036163,2]
[341263817,1730735458891,-500.0,0.00036163,2]
[341263818,1730735458900,-575.99,0.00036163,2]
[341263819,1730735458910,-500.0,0.00036163,2]
[341263820,1730735458919,-500.0,0.00036163,2]
[341263821,1730735458929,-500.0,0.00036163,2]
[341263822,1730735458938,-500.0,0.00036163,2]
[341263823,1730735458947,-500.0,0.00036163,2]
[341263824,1730735458957,-614.35304938,0.00036163,2]
[341263825,1730735458967,-500.0,0.00036163,2]
[341263826,1730735458976,-500.0,0.00036163,2]
[341263827,1730735458986,-512.56174397,0.00036163,2]
[341263828,1730735458996,-500.0,0.00036163,2]
[341263829,1730735459005,-500.0,0.00036163,2]
[341263830,1730735459016,-500.0,0.00036163,2]
[341263831,1730735459027,-616.4483339,0.00036163,2]
[341263832,1730735459037,-549.42,0.00036163,2]
[341263833,1730735459046,-500.0,0.00036163,2]
[341263834,1730735459056,-300.0,0.00036163,10]
[341263835,1730735459065,-743.85,0.00036163,2]
[341263836,1730735459075,-151.0,0.00036163,7]
[341263837,1730735459084,-151.0,0.00036163,7]
[341263838,1730735459093,-151.0,0.00036163,7]
[341263839,1730735459102,-1456090.27392992,0.00036164,2]
[341263840,1730735459112,-17416.71903463,0.00036164,2]
[341263841,1730735459121,-500.0,0.00036164,2]
[341263842,1730735459130,-500.0,0.00036164,2]
[341263843,1730735459139,-502.09948589,0.00036164,2]
[341263844,1730735459149,-153.356,0.00036164,2]
[341263845,1730735459158,-500.0,0.00036164,2]
[341263846,1730735459169,-500.0,0.00036164,2]
[341263847,1730735459180,-500.0,0.00036164,2]
[341263848,1730735459191,-500.0,0.00036164,2]
[341263849,1730735459201,-500.0,0.00036164,2]
[341263850,1730735459211,-500.0,0.00036164,2]
[341263851,1730735459220,-500.0,0.00036164,2]
[341263852,1730735459229,-500.0,0.00036164,2]
[341263853,1730735459238,-500.0,0.00036164,2]
[341263854,1730735459247,-678.77,0.00036164,2]
[341263855,1730735459256,-500.0,0.00036164,2]
[341263856,1730735459265,-500.0,0.00036164,2]
[341263857,1730735459274,-500.0,0.00036164,2]
[341263858,1730735459283,-500.0,0.00036164,2]
[341263859,1730735459293,-500.0,0.00036164,2]
[341263860,1730735459303,-528.6312482,0.00036164,2]
[341263861,1730735459312,-500.0,0.00036164,2]
[341263862,1730735459321,-500.0,0.00036164,2]
[341263863,1730735459331,-500.0,0.00036164,2]
[341263864,1730735459341,-435.69054596,0.00036164,2]
[341263865,1730735459350,-500.0,0.00036164,2]
[341263866,1730735459362,-500.0,0.00036164,2]
[341263867,1730735459372,-220.66274069,0.00036164,2]
[341263868,1730735459382,-500.0,0.00036164,2]
[341263869,1730735459394,-500.0,0.00036164,2]
[341263870,1730735459403,-595.97,0.00036164,2]
[341263871,1730735459412,-500.0,0.00036164,2]
[341263872,1730735459423,-500.0,0.00036164,2]
[341263873,1730735459432,-498.9773257,0.00036164,2]
[341263874,1730735459442,-500.0,0.00036164,2]
[341263875,1730735459451,-287.25406722,0.00036164,2]
[341263876,1730735459463,-562.46,0.00036164,2]
[341263877,1730735459473,-500.0,0.00036164,2]
[341263878,1730735459482,-500.0,0.00036164,2]
[341263879,1730735459492,-500.0,0.00036164,2]
[341263880,1730735459501,-573.86876751,0.00036164,2]
[341263881,1730735459510,-420.51765099,0.00036164,2]
[341263882,1730735459520,-845.59,0.00036164,2]
[341263883,1730735459529,-500.0,0.00036164,2]
[341263884,1730735459539,-500.0,0.00036164,2]
[341263885,1730735459548,-500.0,0.00036164,2]
[341263886,1730735459557,-500.0,0.00036164,2]
[341263887,1730735459567,-500.0,0.00036164,2]
[341263888,1730735459577,-500.0,0.00036164,2]
[341263889,1730735459586,-750.1,0.00036164,2]
[341263890,1730735459596,-500.0,0.00036164,2]
[341263891,1730735459605,-500.0,0.00036164,2]
[341263892,1730735459614,-500.0,0.00036164,2]
[341263893,1730735459623,-500.0,0.00036164,2]
[341263894,1730735459633,-500.0,0.00036164,2]
[341263895,1730735459643,-500.0,0.00036164,2]
[341263896,1730735459652,-500.0,0.00036164,2]
[341263897,1730735459662,-500.0,0.00036164,2]
[341263898,1730735459672,-500.0,0.00036164,2]
[341263899,1730735459681,-500.0,0.00036164,2]
[341263900,1730735459691,-500.0,0.00036164,2]
[341263901,1730735459701,-293.05985774,0.00036164,2]
[341263902,1730735459711,-500.0,0.00036164,2]
[341263903,1730735459720,-567.62,0.00036164,2]
[341263904,1730735459730,-500.0,0.00036164,2]
[341263905,1730735459739,-500.0,0.00036164,2]
[341263906,1730735459748,-500.0,0.00036164,2]
[341263907,1730735459757,-500.0,0.00036164,2]
[341263908,1730735459766,-500.0,0.00036164,2]
[341263909,1730735459776,-500.0,0.00036164,2]
[341263910,1730735459785,-1971.19,0.00036164,2]
[341263911,1730735459795,-500.0,0.00036164,2]
[341263912,1730735459804,-500.0,0.00036164,2]
[341263913,1730735459813,-1610.78,0.00036164,2]
[341263914,1730735459822,-500.0,0.00036164,2]
[341263915,1730735459832,-1096.83,0.00036164,2]
[341263916,1730735459841,-500.0,0.00036164,2]
[341263917,1730735459851,-575.15726081,0.00036164,2]
[341263918,1730735459860,-500.0,0.00036164,2]
[341263919,1730735459870,-500.0,0.00036164,2]
[341263920,1730735459880,-516.0,0.00036164,2]
[341263921,1730735459891,-500.0,0.00036164,2]
[341263922,1730735459900,-527.03,0.00036164,2]
[341263923,1730735459909,-500.0,0.00036164,2]
[341263924,1730735459920,-500.0,0.00036164,2]
[341263925,1730735459929,-680.27,0.00036164,2]
[341263926,1730735459939,-511.55,0.00036164,2]
[341263927,1730735459948,-500.0,0.00036164,2]
[341263928,1730735459958,-568.1,0.00036164,2]
[341263929,1730735459968,-630.31,0.00036164,2]
[341263930,1730735459977,-879.99,0.00036164,2]
[341263931,1730735459987,-500.0,0.00036164,2]
[341263932,1730735459997,-500.0,0.00036164,2]
[341263933,1730735460007,-468.56465372,0.00036164,2]
[341263934,1730735460017,-1000.0,0.00036164,30]
[341263935,1730735460026,-860.12,0.00036164,2]
[341263936,1730735460036,-500.0,0.00036164,2]
[341263937,1730735460046,-500.0,0.00036164,2]
[341263938,1730735460056,-500.0,0.00036164,2]
[341263939,1730735460066,-500.0,0.00036164,2]
[341263940,1730735460076,-500.0,0.00036164,2]
[341263941,1730735460085,-678.21,0.00036164,2]
[341263942,1730735460095,-777.65,0.00036164,2]
[341263943,1730735460104,-612.85860198,0.00036164,2]
[341263944,1730735460113,-500.0,0.00036164,2]
[341263945,1730735460124,-500.0,0.00036164,2]
[341263946,1730735460133,-500.0,0.00036164,2]
[341263947,1730735460143,-512.81,0.00036164,2]
[341263948,1730735460152,-1976.03,0.00036164,2]
[341263949,1730735460161,-977.14,0.00036164,2]
[341263950,1730735460171,-500.0,0.00036164,2]
[341263951,1730735460180,-500.0,0.00036164,2]
[341263952,1730735460190,-500.0,0.00036164,2]
[341263953,1730735460199,-474.96884481,0.00036164,2]
[341263954,1730735460209,-500.0,0.00036164,2]
[341263955,1730735460220,-500.0,0.00036164,2]
[341263956,1730735460230,-712.32,0.00036164,2]
[341263957,1730735460239,-500.0,0.00036164,2]
[341263958,1730735460250,-622.99,0.00036164,2]
[341263959,1730735460259,-385.47572944,0.00036164,2]
[341263960,1730735460269,-500.0,0.00036164,2]
[341263961,1730735460278,-500.0,0.00036164,2]
[341263962,1730735460287,-1115.68,0.00036164,2]
[341263963,1730735460297,-500.0,0.00036164,2]
[341263964,1730735460306,-500.0,0.00036164,2]
[341263965,1730735460316,-500.0,0.00036164,2]
[341263966,1730735460325,-500.0,0.00036164,2]
[341263967,1730735460335,-500.0,0.00036164,2]
[341263968,1730735460344,-500.0,0.00036164,2]
[341263969,1730735460353,-500.0,0.00036164,2]
[341263970,1730735460363,-500.0,0.00036164,2]
[341263971,1730735460373,-500.0,0.00036164,2]
[341263972,1730735460383,-808.98,0.00036164,2]
[341263973,1730735460395,-500.0,0.00036164,2]
[341263974,1730735460405,-1323.81,0.00036164,2]
[341263975,1730735460414,-1426.9,0.00036164,2]
[341263976,1730735460423,-500.0,0.00036164,2]
[341263977,1730735460432,-500.0,0.00036164,2]
[341263978,1730735460443,-500.0,0.00036164,2]
[341263979,1730735460452,-500.0,0.00036164,2]
[341263980,1730735460463,-500.0,0.00036164,2]
[341263981,1730735460472,-666.03,0.00036164,2]
[341263982,1730735460481,-500.0,0.00036164,2]
[341263983,1730735460490,-500.0,0.00036164,2]
[341263984,1730735460500,-839.44,0.00036164,2]
[341263985,1730735460510,-500.0,0.00036164,2]
[341263986,1730735460520,-500.0,0.00036164,2]
[341263987,1730735460530,-500.0,0.00036164,2]
[341263988,1730735460540,-500.0,0.00036164,2]
[341263989,1730735460550,-202.3487027,0.00036164,2]
[341263990,1730735460559,-500.0,0.00036164,2]
[341263991,1730735460569,-500.0,0.00036164,2]
[341263992,1730735460578,-500.0,0.00036164,2]
[341263993,1730735460588,-500.0,0.00036164,2]
[341263994,1730735460597,-737.61,0.00036164,2]
[341263995,1730735460607,-500.0,0.00036164,2]
[341263996,1730735460616,-500.0,0.00036164,2]